Cogmind - Beta 16.1 *** ADVENTURER MODE // 2026.04.01 @ 18:11:49 Player: Lyft Result: Destroyed by as-14858 with Assembled Rifle Performance ------------- Evolutions (0) 0 Regions Visited (2) 400 Robots Destroyed (24) 120 Value Destroyed (241) 241 Prototype IDs (2) 40 Alien Tech Used (0) 0 Bonus (0) 0 TOTAL SCORE: 801 Bonus ------- None Cogmind --------- Core Integrity 0/250 Matter 300/300 Energy 100/100 System Corruption 1% Temperature Cool (0) Movement Core (350) Ox6 Location -10/Mines Parts ------- > --- POWER (1) -------- (None) > --- PROPULSION (2) --- (None) > --- UTILITY (2) ------ Large Storage Unit > --- WEAPON (2) ------- (None) > --- INVENTORY (15) --- Light Nuclear Core Light Treads Light Treads Compact Wheel Medium Storage Unit Large Storage Unit Weight Redist. System Improved Terrain Scanner Transport Network Coupler Core Shielding Core Shielding Propulsion Shielding Assault Rifle Assault Rifle Mining Laser Peak State ------------ > --- POWER ------------ Ion Engine > --- PROPULSION ------- Light Treads Wheel > --- UTILITY ---------- Large Storage Unit Seismic Detector > --- WEAPON ----------- Assault Rifle Light Assault Rifle > --- INVENTORY -------- Light Ion Engine Light Nuclear Core Light Treads Light Treads Wheel Compact Wheel Compact Wheel Medium Storage Unit Large Storage Unit Weight Redist. System Improved Terrain Scanner Transport Network Coupler Core Shielding Core Shielding Mining Laser [Rating: 9] Favorites ----------- Power Ion Engine Engine Ion Engine Propulsion Light Treads Treads Light Treads Leg Aluminum Leg Wheel Wheel Utility Seismic Detector Device Seismic Detector Storage Large Storage Unit Weapon Light Assault Rifle Energy Gun Medium Laser Ballistic Gun Light Assault Rifle Special Weapon Mining Laser Build | -11 -10 -10 ------- Run | Yrd Mat Min Slots Evolved . | . . . Power . | . . . Propulsion . | . . . Utility . | . . . Weapon . | . . . Parts Attached 14 | 5 3 6 Power 2 | . . 2 Engine 2 | . . 2 Core . | . . . Reactor . | . . . Propulsion 4 | 2 . 2 Treads 2 | 1 . 1 Leg . | . . . Wheel 2 | 1 . 1 Hover . | . . . Flight . | . . . Utility 2 | 1 1 . Device 1 | 1 . . Storage 1 | . 1 . Processor . | . . . Hackware . | . . . Protection . | . . . Artifact . | . . . Weapon 6 | 2 2 2 Energy Gun . | . . . Energy Cannon . | . . . Ballistic Gun 4 | 1 1 2 Ballistic Cannon . | . . . Launcher . | . . . Special Weapon 2 | 1 1 . Impact Weapon . | . . . Slashing Weapon . | . . . Piercing Weapon . | . . . Special Melee Weapon . | . . . Unidentified Prototypes . | . . . Parts Lost 9 | . 1 8 Power 2 | . . 2 Propulsion 3 | . . 3 Utility 1 | . . 1 Weapon 3 | . 1 2 Highest Loss Streak 6 | . 1 6 To Critical Strikes . | . . . Average Backups 12 | 7 10 14 Power 1 | 1 1 1 Propulsion 3 | 4 3 3 Utility 5 | . 4 7 Weapon 1 | 1 1 2 Tool/Special . | . . . Unused Backups 20 | . 3 17 Power 3 | . . 3 Propulsion 5 | . 1 4 Utility 10 | . 2 8 Weapon 2 | . . 2 Tool/Special . | . . . Average Slot Usage (%) 94 | . 99 90 Engine 12 | . 14 11 Treads 13 | . 14 12 Wheel 12 | . 14 11 Device 13 | . 14 12 Storage 14 | . 14 14 Ballistic Gun 23 | . 22 24 Special Weapon 2 | . 5 . Peak Build Rating 9 | 8 9 9 Average Rating 8 | 7 8 8 On Entrance 7 | 6 7 9 Avg Prop Armor Cover (%) 12 | 12 12 13 Naked Turns . | . . . Heaviest Build 29 | 14 29 29 Greatest Support 20 | 20 10 16 Greatest Overweight (x) 7 | 1 2 7 Average Overweight (x) 1 | . 1 1 Largest Inventory Capacity 15 | 8 15 15 Average Capacity 14 | 8 14 15 Most Carried 15 | 8 15 15 Average Carried 12 | 7 10 14 Final Capacity 15 | 8 15 15 Final Carried 15 | 6 15 15 Class Distribution -------------------- 100% | Mutant Dominant Class ---------------- Mutant | -10/Materials Mutant | -10/Mines Resources | -11 -10 -10 ----------- Run | Yrd Mat Min Matter Collected 691 | 339 139 213 Remotely . | . . . Salvage Created 806 | 188 323 295 Parts 56 | 23 17 16 Haulers Intercepted 2 | . 2 . Recyclers Shooed 1 | . 1 . Parts Field Recycled . | . . . Retrieved Matter . | . . . Parts Self-Destructed . | . . . Prevented . | . . . Parts Restored . | . . . Kills | -11 -10 -10 ------- Run | Yrd Mat Min Combat Hostiles Destroyed 19 | . 4 15 Guns 19 | . 4 15 Classes Destroyed 7 | 3 3 1 Worker 3 | 2 1 . Tunneler 5 | 5 . . Hauler 2 | . 2 . Recycler 3 | 1 1 1 Swarmer 9 | . 2 7 Grunt 2 | . 2 . Assembled 8 | . . 8 Best Kill Streak 5 | 2 4 5 Combat Bots Only 5 | . 2 5 Max Kills in Single Turn 2 | 1 2 2 Gunslinging 1 | . 1 1 Exploded . | . . . Melee . | . . . Uniques/NPCs Destroyed . | . . . Combat | -11 -10 -10 -------- Run | Yrd Mat Min Hostile Shots Fired 150 | . 32 118 Missed 36 | . 8 28 Hits 114 | . 24 90 Melee 3 | . . 3 Projectile 111 | . 24 87 Critical Strikes 1 | . . 1 Damage Taken 1055 | . 192 863 Core 250 | . 25 225 Absorbed by Shields . | . . . Ignored by Resistances 313 | . 60 253 Core Remaining (%) 100 | 100 . . Volleys Fired 97 | 23 37 37 Largest 2 | 2 2 2 Hottest 100 | 70 100 40 Shots Fired 183 | 46 63 74 Gun 172 | 46 52 74 Cannon . | . . . Launcher . | . . . Special 11 | . 11 . Kinetic 169 | 43 52 74 Thermal 14 | 3 11 . Explosive . | . . . Electromagnetic . | . . . Robot Hit Streak 16 | 16 14 7 Robot Miss Streak 2 | 2 1 2 Penetration Max . | . . . Secondary Targets 3 | . 1 2 Max Gunslinging Chain 1 | . 1 1 Shots Hit Robots 128 | 33 42 53 Core Hits 55 | 12 16 27 Critical Kills 2 | . 1 1 Critical Parts Destroyed 1 | . . 1 Critical Strikes 3 | . 1 2 Destroy 3 | . 1 2 Melee Attacks . | . . . Impact . | . . . Slashing . | . . . Piercing . | . . . Sneak Attacks . | . . . Combat Hostiles . | . . . Follow-up Attacks . | . . . Damage Inflicted 1239 | 332 471 436 Guns 1239 | 332 471 436 Cannons . | . . . Explosions . | . . . Melee . | . . . Ramming . | . . . Kinetic 1213 | 306 471 436 Thermal 26 | 26 . . Explosive . | . . . Electromagnetic . | . . . Impact . | . . . Slashing . | . . . Piercing . | . . . Highest Corruption 1 | . . 1 Average Corruption 1 | . . 1 Corruption Purged . | . . . Corruption Blocked . | . . . Overload Shots . | . . . Overflow Damage . | . . . Projectiles . | . . . Explosions . | . . . Melee . | . . . Knockbacks . | . . . Impact . | . . . Kinetic . | . . . Secondary . | . . . Self-Inflicted Damage . | . . . Shots . | . . . Rammed 1 | . . 1 Targets Rammed 1 | . . 1 Kicked . | . . . Crushed . | . . . Highest Temperature 40 | 18 40 40 Average Temperature 15 | 9 15 24 Received Heat Transfer 181 | . 81 100 Siege Activations . | . . . Martial Activations . | . . . Shielding Activations . | . . . Robots Disrupted . | . . . Combat Hostiles . | . . . Robots Corrupted . | . . . Combat Hostiles . | . . . Parts Fried . | . . . Impact Corruptions . | . . . Robots Melted . | . . . Combat Hostiles . | . . . Parts Melted 1 | 1 . . Heat Transferred 74 | 74 . . Parts Sabotaged . | . . . Parts Stolen . | . . . Parts Stripped . | . . . Power Chain Reactions . | . . . Alert | -11 -10 -10 ------- Run | Yrd Mat Min Maximum Alert Level . | . . . Low Security (%) 100 | 100 100 100 Level 1 . | . . . Level 2 . | . . . Level 3 . | . . . Level 4 . | . . . Level 5 . | . . . High Security . | . . . Max Security . | . . . Peak Influence 85 | 10 45 85 Initial 2 | . 2 . Average 11 | 1 8 17 Influence Increases 418 | 40 180 198 Destroy 0b10 Robot/C 220 | . 80 140 Destroy 0b10 Robot/NC 65 | 40 20 5 Destroy Leader 44 | . 24 20 Successful Hack 39 | . 36 3 Disable Machine 9 | . 9 . Destroy Structure 11 | . 11 . Lose Combat Pursuer 30 | . . 30 Influence Decreases 418 | 35 185 198 Entered New Map 3 | . 3 . Time Decay 405 | 35 172 198 Lost Part 1 | . 1 . Purge Threat 9 | . 9 . Squads Dispatched . | . . . Investigation . | . . . Extermination . | . . . Reinforcement . | . . . Assault . | . . . Garrison . | . . . Intercept . | . . . Searches Triggered . | . . . Construction Impeded . | . . . Haulers Reinforced . | . . . Active Scanning Responses . | . . . Cargo Convoy Interrupts . | . . . Stealth | -11 -10 -10 --------- Run | Yrd Mat Min Distress Signals . | . . . Communications Jammed . | . . . Distress Signals . | . . . Times Spotted 25 | . 8 17 Peak Tracking Total 4 | . 3 4 Tactical Retreats 1 | . . 1 Traps | -11 -10 -10 ------- Run | Yrd Mat Min Traps Triggered . | . . . Indirectly . | . . . Trap Hack Attempts . | . . . Triggered . | . . . Disarmed . | . . . Reprogrammed . | . . . Reused . | . . . Traps Extracted . | . . . Installed . | . . . Triggered . | . . . Machines | -11 -10 -10 ---------- Run | Yrd Mat Min Machines Disabled 1 | . 1 . Max in Single Turn 1 | . 1 . Machines Repaired . | . . . Machines Dismantled . | . . . Machines Sabotaged . | . . . Overloaded Fab Kills . | . . . Hacking | -11 -10 -10 --------- Run | Yrd Mat Min Machines Accessed 9 | . 8 1 Terminals 9 | . 8 1 Fabricators . | . . . Repair Stations . | . . . Recycling Units . | . . . Scanalyzers . | . . . Garrison Access . | . . . Total Hacks 28 | . 26 2 Successful 21 | . 19 2 Failed 7 | . 7 . Catastrophic . | . . . Database Lockouts . | . . . Manual 12 | . 10 2 Terminals 28 | . 26 2 Fabricators . | . . . Repair Stations . | . . . Recycling Units . | . . . Scanalyzers . | . . . Garrison Access . | . . . Terminal Hacks 15 | . 13 2 Robot Analysis 2 | . 1 1 Prototype ID Bank 1 | . 1 . Branch Access Points 1 | . 1 . Terminal Index 1 | . 1 . Unreport Threat 1 | . 1 . Locate Traps 2 | . 2 . Dispatch Records 1 | . . 1 Hauler Manifests 1 | . 1 . Registered Components 1 | . 1 . Zone Layout 4 | . 4 . Fabricator Hacks . | . . . Repair Station Hacks . | . . . Recycling Unit Hacks . | . . . Scanalyzer . | . . . Garrison Access Hacks . | . . . Unauthorized Hacks 6 | . 6 . Terminals 6 | . 6 . Botnet 3 | . 3 . Operators 1 | . 1 . Skim 2 | . 2 . Fabricators . | . . . Repair Stations . | . . . Recycling Units . | . . . Scanalyzers . | . . . Garrison Access . | . . . Data Cores Recovered . | . . . Used . | . . . Hacking Detections 9 | . 8 1 Full Trace Events . | . . . Feedback Events . | . . . Feedback Blocked . | . . . Robot Schematics Acquired . | . . . Robots Built . | . . . Authchips . | . . . Time . | . . . Total Robot Build Rating . | . . . Part Schematics Acquired . | . . . Parts Built . | . . . Authchips . | . . . Time . | . . . Total Part Build Rating . | . . . Part Studies Acquired . | . . . Parts Repaired . | . . . Time . | . . . Parts Recycled . | . . . Recycled Matter . | . . . Retrieved Matter . | . . . Retrieved Components . | . . . Parts Scanalyzed . | . . . Part Schematics Acquired . | . . . Parts Damaged . | . . . Bothacking | -11 -10 -10 ------------ Run | Yrd Mat Min Used RIF Installer . | . . . Robots Hacked . | . . . Non-combat . | . . . Combat . | . . . Robot Hacks Applied . | . . . Relay Couplers Released . | . . . Fabnet Peak Effective % . | . . . Robots Rewired . | . . . Allies Hacked . | . . . Hacks Repelled . | . . . Allies | -11 -10 -10 -------- Run | Yrd Mat Min Total Allies . | . . . Largest Group . | . . . Highest-Rated Group . | . . . Highest-Rated Ally . | . . . Total Orders . | . . . Ally Attacks . | . . . Total Damage . | . . . Kills . | . . . Allies Corrupted . | . . . Allies Melted . | . . . Intel | -11 -10 -10 ------- Run | Yrd Mat Min Active Infowar (turns) 1778 | 135 780 863 Seismic 1778 | 135 780 863 Robot Analysis Total 2 | . 1 1 Derelict Logs Recovered . | . . . Drone Launches . | . . . Drone Recoveries . | . . . Exploration | -11 -10 -10 ------------- Run | Yrd Mat Min Turns Passed 1960 | 239 780 941 Spaces Moved 1205 | 135 556 514 Core 37 | . . 37 Treads . | . . . Legs 117 | 117 . . Wheels 1051 | 18 556 477 Hover . | . . . Flight . | . . . Fastest Speed 95 | 95 95 110 Average Speed 120 | 116 109 132 Slowest Speed 400 | 120 110 400 Overloaded Moves . | . . . Propulsion Burnouts . | . . . Robots Hopped . | . . . Potential Cave-ins . | . . . Cave-ins Triggered . | . . . Exploration Rate (%) 62 | 5 92 91 Regions Visited 2 Branch Regions 1 Pre-discovered Areas . | . . . Known Exits Taken 1 | . 1 . Unknown Exits Taken 1 | 1 . . Scrap Searched 1 | . . 1 Spaces Dug 10 | . 10 . Terrain Destroyed 10 | . 10 . Melee . | . . . Projectile 10 | . 10 . AOE . | . . . Terrain Rammed . | . . . Walls Destroyed . | . . . Machines Disabled . | . . . Actions | -11 -10 -10 --------- Run | Yrd Mat Min Total 1527 | 174 645 708 Wait 182 | 7 35 140 Move 1203 | 134 555 514 Hop . | . . . Pick Up 17 | 2 11 4 Fast Attach 3 | 2 1 . Attach 4 | 2 . 2 Detach . | . . . Swap 10 | 1 4 5 Drop 10 | 3 2 5 Fire 97 | 23 37 37 Melee . | . . . Ram 1 | . . 1 Kick . | . . . Crush . | . . . Escape Stasis . | . . . Rewire . | . . . Trap . | . . . Miscellaneous . | . . . Route ------- -11/Scrapyard -10/Materials (discovered 4 exits: [*Mat x3] / *Min) -10/Mines (discovered 3 exits: [*Mat x2] / [*Exi]) History --------- Turn | Location | Event 4 | -11/Scrapyard | Discovered new exit (range 2) 240 | -11/Scrapyard | Entered Materials 241 | -10/Materials | Met a group of wandering Federalists 302 | -10/Materials | Build established: Mutant 345 | -10/Materials | Discovered new exit (range 10) 376 | -10/Materials | Discovered new exit (range 20) 638 | -10/Materials | Identified exit to Mines 665 | -10/Materials | Discovered new exit (range 6) 980 | -10/Materials | Discovered new exit (range 7) 1020 | -10/Materials | Entered Mines 1181 | -10/Mines | Deemed a non-threat by the Exiles lab entrance 1182 | -10/Mines | Discovered new exit (range 5) 1238 | -10/Mines | Discovered new exit (range 7) 1419 | -10/Mines | Discovered new exit (range 7) 1532 | -10/Mines | Assembled infested the area 1537 | -10/Mines | Assisted by a Guerilla fighting off Assembled 1814 | -10/Mines | Core integrity fell below 50% 1923 | -10/Mines | Lost 6 parts (1p2n1u2w) 1938 | -10/Mines | Core integrity fell below 20% 1961 | -10/Mines | Destroyed by as-14858 with Assembled Rifle Last Messages --------------- 01818_ Switching to secondary target: as-19976. 01818_ as-19976 destroyed. 01818_ K-01 Serf collects debris. 01821_ Acquired 7 matter. 01821_ K-01 Serf collects debris. 01823_ Com. Wheel destroyed. 01828_ Slammed into as-14858. 01828_ Destabilizing: System corrupted (+1). 01832_ K-01 Serf collects debris. 01843_ Lgt. Assault Rifle destroyed. 01846_ K-01 Serf collects debris. 01847_ K-01 Serf destroyed. 01863_ Assault Rifle destroyed. 01865_ K-01 Serf collects debris. 01883_ Seismic Detector destroyed. 01892_ Lgt. Treads destroyed. 01901_ K-01 Serf cleans the Plasma Injector. 01907_ K-01 Serf collects debris. 01913_ K-01 Serf cleans the Seismic Survey Station. Map ----- +----------------------------------------------------+ | ????##??????????????????????????????? | | ???## #????????????????????????????? | | ???# ######??????????????????????? | | ???# ####??????########?????? | | ???# < """ #?????## #?????? | | ????# """ # #?????# ######? | | ?????# """ ## #?????# ## ## | | ?????## ## #??????# | | ??????## ## ######### | | ???????## ### ### ### | | ????????#####?######## #?## ###?## | | ?????????????????????# #??####????## | | ?????????????????????# #???????????## | | ?????????????????????# #????????????? | | ?????????????????????# #????????????? | | ?????????????????????# #????????????? | | ?????????????????????# #????????????? | | ?????????????????????# #????????????? | | ?????????????????????# #????????????# | | ??????????????######## ######???????# | | ??????????????# #???????# | | ??????????????# """ """ """%####????# | | ??????##???#### """ """ """ #????# | | ??????#<#### """ """ """ #????# | | ??????# ##a## *% ## #????# | | ??????### @## ## #????? | | ????????### ### ## #????? | | ??????????###?################ #????? | | ??????????????????????????#!=% #????? | | ??????????????????????????#%!######?? | | ??????????????????????????#*|### ### | | ??????????????????????????#==## !# | | ??????????????????????????#!%## == | | ??????????????????????????#]!#= !%% | | ???????????????????????####*[%! !* | | ??????????????????????## !* # | | ??????????????????????# ! ## ## | | ??????????????????????# %######? | | ??????????????????????# """ %##????? | | ?????????????????????## """ #????? | | ????????????????###### """% #??### | | ???????????????## ## % ##?# # | | ?????????####### ##?? | | ?????????# ##?## | | ?????????# ##### #### # | | ????###### ##### ## # | | ????# ### # | | ????# =%* ##?##| = # | | ????# ########### = ##???#%==%= ## | | ???## #?????????## #??### = #? | +----------------------------------------------------+ Best States ------------- Heat Dissipation 25 Energy Generation 10 Energy Capacity 250 Matter Stores 300 Matter Capacity 300 Sight Range 16 Terrain Scan Density 10 Resistance: KI 20 Resistance: TH 20 Resistance: EX 20 Resistance: EM 20 Resistance: I 20 Resistance: S 20 Resistance: P 20 Evasion (%) 55 Recoil Reduction 1 Offensive Hacking 10 Item Schematics ----------------- None Robot Schematics ------------------ None Fabricated ------------ Nothing Repaired ---------- Nothing Studied --------- None Alien Tech Used ----------------- None Achievements -------------- None Challenges ------------ None Game ------ Seed ResetAntimissileInterpreter Manual? 0 Play Time 00:19:02 Cumulative 34.2 hours Start 2026.04.01 @ 17:54:24 End 2026.04.01 @ 18:11:49 Sessions 1 Manual Loads 0 Difficulty Adventurer Special Mode None Game No. 53 Rogue 47 Adventurer 5 Explorer 1 Win Type - Total 0 Types 0/0/0/0/0/0/0/0/0/0 Lore% 21 Gallery% 26 Achievement% 18 Wizard Run 0 Options --------- Layout 1 ASCII 0 Keyboard 0 Movement Mouse Keybinds 0 Fullscreen 1 Font 48/Smallcaps Map View 50x35 Zoom Use 0% Tactical HUD 1 Map Filters NONE Filters NONE Steam 1 RUN: 65691e92-ef5b-482b-835a-32d37a6a76bf